bitfinex/quotes_SOLUSD_20230101
["timestamp","ask_amount","ask_price","bid_price","bid_amount"]
[1672579960243,40.0,9.9208,9.9153,40.0]
[1672579960460,40.0,9.9208,9.9154,75.72]
[1672579960768,40.0,9.9208,9.9155,40.0]
[1672579960976,85.13842136,9.9209,9.9157,40.0]
[1672579961189,85.13842136,9.9209,9.9159,40.0]
[1672579961398,85.13842136,9.9209,9.916,75.71]
[1672579961606,40.0,9.9208,9.9161,40.0]
[1672579961803,40.0,9.9208,9.9163,40.0]
[1672579962021,40.0,9.9208,9.9165,40.0]
[1672579962456,40.0,9.9208,9.9164,75.71]
[1672579963307,40.0,9.9208,9.9162,75.71]
[1672579963631,85.13842136,9.9209,9.9162,75.71]
[1672579963632,57.09669429,9.9207,9.9163,40.0]
[1672579963828,57.09669429,9.9207,9.9165,40.0]
[1672579964037,57.09669429,9.9207,9.9166,75.71]
[1672579964246,57.09669429,9.9207,9.9167,40.0]
[1672579964467,40.0,9.9218,9.9169,40.0]
[1672579964678,40.0,9.9218,9.9171,40.0]
[1672579964892,40.0,9.9218,9.9172,75.7]
[1672579965102,40.0,9.9218,9.9173,40.0]
[1672579965315,59.106553,9.9224,9.9174,75.7]
[1672579965512,40.0,9.9222,9.9174,75.7]
[1672579965726,20.0,9.9221,9.9174,75.7]
[1672579965934,20.0,9.9221,9.9172,75.7]
[1672579966143,20.0,9.9221,9.917,75.71]
[1672579967294,57.11310562,9.922,9.917,75.71]
[1672579967505,40.0,9.9219,9.9169,40.0]
[1672579967716,40.0,9.9219,9.917,75.71]
[1672579967925,40.0,9.9219,9.9166,75.71]
[1672579968239,40.0,9.9219,9.9167,40.0]
[1672579968448,40.0,9.9219,9.9168,75.71]
[1672579968659,40.0,9.9219,9.9169,40.0]
[1672579968875,40.0,9.9219,9.917,75.71]
[1672579970363,40.0,9.9219,9.9168,75.71]
[1672579971295,57.11058108,9.9218,9.9169,40.0]
[1672579971501,57.11058108,9.9218,9.917,75.71]
[1672579971715,57.11058108,9.9218,9.9171,40.0]
[1672579971928,57.11058108,9.9218,9.9172,75.7]
[1672579972150,40.0,9.9217,9.9172,75.7]
[1672579972457,40.0,9.9217,9.9167,40.0]
[1672579972458,40.0,9.9217,9.9168,75.71]
[1672579972872,40.0,9.9217,9.9169,40.0]
[1672579973089,40.0,9.9217,9.917,75.71]
[1672579973620,40.0,9.9217,9.9168,75.71]
[1672579973823,40.0,9.9215,9.9156,75.72]
[1672579974230,85.13842136,9.9214,9.9156,75.72]
[1672579974454,40.0,9.9213,9.9157,40.0]
[1672579974674,40.0,9.9213,9.9159,40.0]
[1672579974879,40.0,9.9213,9.916,75.71]
[1672579975091,40.0,9.9213,9.9161,40.0]
[1672579975285,40.0,9.9211,9.9163,40.0]
[1672579975496,40.0,9.9211,9.9164,75.71]
[1672579975915,40.0,9.9211,9.9163,40.0]
[1672579976125,40.0,9.9211,9.9164,75.71]
[1672579977605,40.0,9.9211,9.9162,75.71]
[1672579977817,40.0,9.9211,9.9159,40.0]
[1672579978025,40.0,9.9211,9.916,75.71]
[1672579978233,40.0,9.9211,9.9161,40.0]
[1672579978445,40.0,9.9211,9.9162,75.71]
[1672579979080,40.0,9.9211,9.916,75.71]
[1672579979286,57.1004819,9.921,9.9161,40.0]
[1672579979503,40.0,9.9209,9.9162,75.71]
[1672579980034,40.0,9.9209,9.9163,40.0]
[1672579980233,40.0,9.9209,9.9164,75.71]
[1672579980445,40.0,9.9209,9.9159,40.0]
[1672579980656,40.0,9.9209,9.916,75.71]
[1672579981077,57.1004819,9.921,9.9161,40.0]
[1672579981402,57.1004819,9.921,9.9163,40.0]
[1672579981591,40.0,9.9209,9.9164,75.71]
[1672579982855,40.0,9.9209,9.9161,40.0]
[1672579983066,40.0,9.9209,9.9162,75.71]
[1672579983398,40.0,9.9209,9.9163,40.0]
[1672579983604,57.09795685,9.9208,9.9165,40.0]
[1672579983920,40.0,9.9207,9.9164,75.71]
[1672579984137,40.0,9.9207,9.9165,40.0]
[1672579984342,40.0,9.9207,9.9164,75.71]
[1672579985175,40.0,9.9207,9.9158,75.72]
[1672579985586,40.0,9.9207,9.9159,40.0]
[1672579985793,40.0,9.9207,9.9161,40.0]
[1672579986011,40.0,9.9207,9.9162,75.71]
[1672579986762,40.0,9.9207,9.9159,40.0]
[1672579986763,40.0,9.9207,9.9161,40.0]
[1672579986949,40.0,9.9207,9.9162,75.71]
[1672579987480,40.0,9.9205,9.9162,75.71]
[1672579988439,40.0,9.9205,9.916,75.71]
[1672579988652,40.0,9.9205,9.9158,75.72]
[1672579989076,40.0,9.9205,9.9159,40.0]
[1672579989266,40.0,9.9205,9.916,75.71]
[1672579989688,57.0954317,9.9206,9.916,75.71]
[1672579989898,57.0954317,9.9206,9.9161,40.0]
[1672579990109,40.0,9.9205,9.9162,75.71]
[1672579990314,40.0,9.9205,9.9163,40.0]
[1672579990526,40.0,9.9211,9.9164,75.71]
[1672579990862,75.65,9.9244,9.9164,75.71]
[1672579991072,40.0,9.9213,9.9165,40.0]
[1672579991282,40.0,9.9213,9.9166,75.71]
[1672579991492,57.1004819,9.921,9.9166,75.71]
[1672579992322,40.0,9.9209,9.9166,75.71]
[1672579992540,40.0,9.9209,9.916,75.71]
[1672579992750,40.0,9.9209,9.9161,40.0]
[1672579992963,40.0,9.9209,9.9163,40.0]
[1672579993162,40.0,9.9209,9.9164,75.71]
[1672579994116,40.0,9.9209,9.9165,40.0]
[1672579994334,40.0,9.9209,9.9166,75.71]
[1672579994551,40.0,9.9209,9.9164,75.71]
[1672579994941,40.0,9.9209,9.9165,40.0]
[1672579995261,40.0,9.9209,9.9166,75.71]
[1672579995468,57.09795685,9.9208,9.9166,75.71]
[1672579995684,40.0,9.9207,9.9165,40.0]
[1672579995894,40.0,9.9207,9.9166,75.71]
[1672579996522,57.09795685,9.9208,9.9167,40.0]
[1672579996861,57.09795685,9.9208,9.9168,75.71]
[1672579997268,40.0,9.9213,9.9168,75.71]
[1672579997269,40.0,9.9207,9.9168,75.71]
[1672579997479,40.0,9.9207,9.9162,75.71]
[1672579997694,40.0,9.9207,9.9163,40.0]
[1672579997889,40.0,9.9207,9.9164,75.71]
[1672579998428,40.0,9.9207,9.9165,40.0]
[1672579998646,40.0,9.9207,9.9166,75.71]
[1672579999366,57.0954317,9.9206,9.9167,40.0]
[1672579999571,57.0954317,9.9206,9.9168,75.71]
[1672580000529,40.0,9.9213,9.9166,75.71]
[1672580001579,40.0,9.9213,9.9164,75.71]
[1672580001990,40.0,9.9213,9.9165,40.0]
[1672580002220,40.0,9.9213,9.9166,75.71]
[1672580002617,40.0,9.9213,9.9165,40.0]
[1672580003357,57.10300685,9.9212,9.9165,40.0]
[1672580003584,40.0,9.9211,9.9165,40.0]
[1672580005467,40.0,9.9211,9.9164,75.71]
[1672580006633,40.0,9.9211,9.9161,40.0]
[1672580006634,40.0,9.9211,9.9163,40.0]
[1672580006820,40.0,9.9211,9.9164,75.71]
[1672580007246,40.0,9.9211,9.9165,40.0]
[1672580007451,40.0,9.9209,9.9166,75.71]
[1672580007667,40.0,9.9209,9.9164,75.71]
[1672580008716,57.1004819,9.921,9.9165,40.0]
[1672580008930,57.1004819,9.921,9.9167,40.0]
[1672580009138,57.1004819,9.921,9.9168,75.71]
[1672580009357,75.64,9.9251,9.9169,40.0]
[1672580009568,40.0,9.9213,9.917,75.71]
[1672580011135,40.0,9.9213,9.9168,75.71]
[1672580011350,40.0,9.9211,9.9168,75.71]
[1672580011561,40.0,9.9211,9.9161,40.0]
[1672580011762,40.0,9.9211,9.9163,40.0]
[1672580012089,40.0,9.9211,9.9165,40.0]
[1672580012303,40.0,9.9211,9.9167,40.0]
[1672580012520,40.0,9.9211,9.9168,75.71]
[1672580013778,40.0,9.9211,9.9169,40.0]
[1672580013995,40.0,9.9211,9.917,75.71]
[1672580014203,57.10300685,9.9212,9.917,75.71]
[1672580015253,57.10300685,9.9212,9.9164,75.71]
[1672580015466,40.0,9.9211,9.9165,40.0]
[1672580015668,40.0,9.9211,9.9167,40.0]
[1672580015878,40.0,9.9211,9.9168,75.71]
[1672580016289,57.1004819,9.921,9.9168,75.71]
[1672580016506,40.0,9.9209,9.9168,75.71]
[1672580017143,57.1004819,9.921,9.9168,75.71]
[1672580017553,57.1004819,9.921,9.9169,40.0]
[1672580017777,57.1004819,9.921,9.917,75.71]
[1672580017988,57.1004819,9.921,9.9168,75.71]
[1672580018410,40.0,9.9213,9.9168,75.71]
[1672580018604,40.0,9.9213,9.9169,40.0]
[1672580018814,40.0,9.9213,9.9165,40.0]
[1672580018815,40.0,9.9213,9.917,75.71]
[1672580019024,85.13842136,9.9217,9.9167,40.0]
[1672580019250,85.13842136,9.9217,9.9169,40.0]
[1672580019548,57.10300685,9.9212,9.917,75.71]
[1672580019772,40.0,9.9211,9.917,75.71]
[1672580020617,40.0,9.9211,9.9161,40.0]
[1672580020932,40.0,9.9211,9.9163,40.0]
[1672580021143,40.0,9.9211,9.9164,75.71]
[1672580023128,40.0,9.9211,9.9165,40.0]
[1672580023348,40.0,9.9211,9.9166,75.71]
[1672580023543,40.0,9.9209,9.9166,75.71]
[1672580024193,57.1004819,9.921,9.9167,40.0]
[1672580024392,57.1004819,9.921,9.9168,75.71]
[1672580024615,57.1004819,9.921,9.9166,75.71]
[1672580025034,40.0,9.9209,9.9166,75.71]
[1672580025356,40.0,9.9209,9.9164,75.71]
[1672580026089,40.0,9.9209,9.9165,40.0]
[1672580026308,40.0,9.9209,9.9166,75.71]
[1672580027460,40.0,9.9207,9.9166,75.71]
[1672580029558,57.09795685,9.9208,9.9166,75.71]
[1672580029746,57.09795685,9.9208,9.9164,75.71]
[1672580029963,57.09795685,9.9208,9.9165,40.0]
[1672580030171,40.0,9.9207,9.9166,75.71]
[1672580030396,40.0,9.9207,9.9161,40.0]
[1672580030612,40.0,9.9207,9.9162,75.71]
[1672580030821,40.0,9.9207,9.9163,40.0]
[1672580031013,40.0,9.9207,9.9164,75.71]
[1672580031433,40.0,9.9205,9.9164,75.71]
[1672580032079,57.0954317,9.9206,9.9165,40.0]
[1672580032396,40.0,9.9205,9.9166,75.71]
[1672580032595,40.0,9.9205,9.9161,40.0]
[1672580032796,57.0954317,9.9206,9.9163,40.0]
[1672580033006,57.0954317,9.9206,9.9164,75.71]
[1672580033232,57.0954317,9.9206,9.9165,40.0]
[1672580033433,40.0,9.9216,9.9167,40.0]
[1672580033643,40.0,9.9216,9.9169,40.0]
[1672580033855,40.0,9.9216,9.917,73.21788737]
[1672580034062,40.0,9.9216,9.9168,75.71]
[1672580034279,40.0,9.9216,9.9161,40.0]
[1672580034488,40.0,9.9216,9.9162,75.71]
[1672580034699,40.0,9.9216,9.9159,40.0]
[1672580034918,40.0,9.9216,9.916,75.71]
[1672580035341,57.10679408,9.9215,9.916,75.71]
[1672580036597,57.10679408,9.9215,9.9161,40.0]
[1672580036790,57.10679408,9.9215,9.9163,40.0]
[1672580037003,57.10679408,9.9215,9.9164,75.71]
[1672580037861,57.10679408,9.9215,9.9165,40.0]
[1672580038059,57.10679408,9.9215,9.9167,40.0]
[1672580038270,57.10679408,9.9215,9.9168,75.71]
[1672580038475,40.0,9.924,9.9168,75.71]
[1672580038804,20.0,9.9226,9.9166,75.71]
[1672580039021,40.0,9.9225,9.9166,75.71]
[1672580039223,40.0,9.9225,9.9164,75.71]
[1672580039434,20.0,9.9224,9.916,75.71]
[1672580039632,20.0,9.9224,9.9159,40.0]
[1672580039841,20.0,9.9224,9.916,75.71]
[1672580040265,20.0,9.9224,9.8995,598.44887934]
[1672580040266,40.0,9.9223,9.9158,75.72]
[1672580040471,20.0,9.9222,9.9151,40.0]
[1672580040681,20.0,9.9222,9.9153,40.0]
[1672580040893,20.0,9.9222,9.9155,40.0]
[1672580041111,20.0,9.9224,9.9156,75.72]
[1672580041940,20.0,9.9224,9.9152,75.72]
[1672580042908,20.0,9.9224,9.8994,598.44887934]
[1672580042909,40.0,9.9223,9.9153,40.0]
[1672580043097,20.0,9.9222,9.9154,75.72]
[1672580043421,20.0,9.9222,9.9149,40.0]
[1672580043640,40.0,9.9221,9.915,75.72]
[1672580043851,20.0,9.922,9.9143,40.0]
[1672580044062,20.0,9.922,9.9144,75.73]
[1672580044694,40.0,9.9219,9.9141,40.0]
[1672580044888,64.264,9.9219,9.9142,75.73]
[1672580045855,64.264,9.9219,9.9143,40.0]
[1672580046050,64.264,9.9219,9.9144,75.73]
[1672580046255,64.264,9.9219,9.9145,40.0]
[1672580046464,64.264,9.9219,9.9147,40.0]
[1672580046673,64.264,9.9219,9.9148,75.72]
[1672580047313,64.264,9.9219,9.9145,40.0]
[1672580047516,40.0,9.9217,9.9146,75.72]
[1672580047931,57.11058108,9.9218,9.9147,40.0]
[1672580048149,57.11058108,9.9218,9.9149,40.0]
[1672580048366,57.11058108,9.9218,9.915,75.72]
[1672580048561,40.0,9.9217,9.915,75.72]
[1672580048772,40.0,9.9217,9.9148,75.72]
[1672580049406,40.0,9.9217,9.9146,75.72]
[1672580050263,40.0,9.9217,9.9136,75.73]
[1672580050456,24.2791,9.9216,9.9137,40.0]
[1672580050663,24.2791,9.9216,9.9139,40.0]
[1672580050889,24.2791,9.9216,9.9141,40.0]
[1672580051114,24.2791,9.9216,9.9142,75.73]
[1672580051296,24.2791,9.9216,9.9143,40.0]
[1672580051509,5.0,9.9146,9.9144,75.73]
[1672580051716,5.0,9.9146,9.9139,40.0]
[1672580052046,5.0,9.9146,9.9141,40.0]
[1672580052254,5.0,9.9146,9.9142,75.73]
[1672580052657,5.0,9.9146,9.914,75.73]
[1672580053104,5.0,9.9146,9.9135,40.0]
[1672580053292,5.0,9.9146,9.9136,75.73]
[1672580053841,5.0,9.9146,9.9134,75.73]
[1672580054878,5.0,9.9146,9.9135,40.0]
[1672580055089,5.0,9.9146,9.9136,75.73]
[1672580055401,57.01836568,9.9145,9.9137,40.0]
[1672580055614,57.01836568,9.9145,9.9139,40.0]
[1672580055839,57.01836568,9.9145,9.914,75.73]
[1672580057091,57.01836568,9.9145,9.9139,40.0]
[1672580057301,57.01836568,9.9145,9.914,75.73]
[1672580057947,57.01836568,9.9145,9.9138,75.73]
[1672580058558,57.01836568,9.9145,9.9134,75.73]
[1672580058772,57.01836568,9.9145,9.9114,40.0]
[1672580059103,57.01836568,9.9145,9.9116,40.0]
[1672580059311,57.01836568,9.9145,9.9118,40.0]
[1672580059511,57.01836568,9.9145,9.9119,75.75]
[1672580059935,57.01836568,9.9145,9.9116,40.0]
[1672580060143,57.01836568,9.9145,9.9117,75.75]
[1672580060356,57.01836568,9.9145,9.9118,40.0]
[1672580060554,57.01836568,9.9145,9.912,40.0]
[1672580060773,57.01836568,9.9145,9.9121,75.74]
[1672580060990,57.01836568,9.9145,9.9122,40.0]
[1672580061200,57.01836568,9.9145,9.9124,40.0]
[1672580061521,57.01836568,9.9145,9.9126,40.0]
[1672580061713,57.01836568,9.9145,9.9128,40.0]
[1672580061923,57.01836568,9.9145,9.9129,75.74]
[1672580062133,57.01836568,9.9145,9.913,40.0]
[1672580062347,57.01836568,9.9145,9.9132,40.0]
[1672580062569,57.01836568,9.9145,9.9133,75.73]
[1672580062789,57.01836568,9.9145,9.9134,40.0]
[1672580063002,57.01836568,9.9145,9.9136,40.0]
[1672580063189,57.01836568,9.9145,9.9137,75.73]
[1672580063399,57.01836568,9.9145,9.9138,40.0]
[1672580063614,57.01836568,9.9145,9.9139,75.73]
[1672580064036,57.01836568,9.9145,9.914,40.0]
[1672580064361,57.01836568,9.9145,9.9142,40.0]
[1672580064573,57.01836568,9.9145,9.9143,75.73]
[1672580064776,57.01836568,9.9145,9.9144,40.0]
[1672580064997,57.01836568,9.9145,9.9144,115.73]
[1672580065313,57.01836568,9.9145,9.9144,75.73]
[1672580065521,57.01836568,9.9145,9.9143,75.73]
[1672580065739,57.01836568,9.9145,9.9144,40.0]
[1672580066047,57.01836568,9.9145,9.9144,115.73]
[1672580068238,57.01836568,9.9145,9.9144,75.73]
[1672580068451,57.01836568,9.9145,9.914,40.0]
[1672580068775,57.01836568,9.9145,9.9142,40.0]
[1672580068993,57.01836568,9.9145,9.9144,40.0]
[1672580069184,57.01836568,9.9145,9.9144,115.73]
[1672580069710,57.01836568,9.9145,9.9144,75.73]
[1672580069924,57.01836568,9.9145,9.914,40.0]
[1672580070126,57.01836568,9.9145,9.9141,75.73]
[1672580070344,57.01836568,9.9145,9.9142,40.0]
[1672580070663,57.01836568,9.9145,9.9143,75.73]
[1672580071492,57.01836568,9.9145,9.9093,302.2]
[1672580071716,57.01836568,9.9145,9.9037,74.89322569]
[1672580072117,57.01836568,9.9145,9.9095,75.76]
[1672580074343,57.01836568,9.9145,9.9111,75.75]
[1672580076131,57.01836568,9.9145,9.9095,75.76]
[1672580077096,40.0,9.9144,9.9014,302.2]
[1672580077414,97.01710151,9.9144,9.9014,302.2]
[1672580077628,97.01710151,9.9144,9.908,75.77]
[1672580078463,97.01710151,9.9144,9.9081,40.0]
[1672580078464,57.01710151,9.9144,9.9081,40.0]
[1672580078655,57.01710151,9.9144,9.9083,40.0]
[1672580078876,57.01710151,9.9144,9.9095,75.76]
[1672580080668,40.0,9.9143,9.9095,75.76]
[1672580081387,57.0145731,9.9142,9.9043,40.0]
[1672580081598,40.0,9.9141,9.9043,40.0]
[1672580082024,40.0,9.9141,9.908,75.77]
[1672580084448,40.0,9.9139,9.908,75.77]
[1672580088534,40.0,9.9137,9.908,75.77]
[1672580092327,57.00698726,9.9136,9.908,75.77]
[1672580092532,40.0,9.9135,9.908,75.77]
[1672580094937,40.0,9.9135,9.9046,22.6249]
[1672580094938,76.29842136,9.9134,9.9046,22.6249]
[1672580095147,76.29842136,9.9134,9.8994,302.2]
[1672580095148,75.73,9.9133,9.8994,302.2]
[1672580095358,60.0,9.9132,9.8995,40.0]
[1672580095592,40.0,9.913,9.9021,75.82]
[1672580095899,40.0,9.9128,9.9021,75.82]
[1672580096089,95.74,9.9127,9.9021,75.82]
[1672580096429,40.0,9.9126,9.9021,75.82]
[1672580096619,40.0,9.9124,9.9021,75.82]
[1672580096836,40.0,9.9122,9.9021,75.82]
[1672580097166,40.0,9.912,9.9022,40.0]
[1672580097385,20.0,9.9119,9.9023,75.82]
[1672580097570,40.0,9.9118,9.9024,40.0]
[1672580097781,40.0,9.9118,9.9026,40.0]
[1672580098093,40.0,9.9116,9.9027,75.82]
[1672580098302,40.0,9.9116,9.9028,40.0]
[1672580098513,24.2012,9.9115,9.9029,75.81]
[1672580098728,40.0,9.9114,9.9023,75.82]
[1672580098929,89.0613,9.9114,9.9021,75.82]
[1672580099142,40.0,9.9112,9.9021,75.82]
[1672580099672,40.0,9.911,9.9021,75.82]
[1672580100093,40.0,9.911,9.9022,40.0]
[1672580100303,40.0,9.9108,9.9023,75.82]
[1672580100509,40.0,9.9108,9.9024,40.0]
[1672580100723,40.0,9.9108,9.9025,75.82]
[1672580100936,40.0,9.9106,9.9025,75.82]
[1672580101150,40.0,9.9106,9.9021,75.82]
[1672580101474,40.0,9.9104,9.9021,75.82]
[1672580101880,40.0,9.9102,9.9021,75.82]
[1672580102527,24.8341,9.9101,9.9021,75.82]
[1672580103140,24.8341,9.91,9.9021,75.82]
[1672580103350,40.0,9.9099,9.8988,40.0]
[1672580103583,40.0,9.9099,9.8986,63.2877]
[1672580103584,64.8341,9.9099,9.8996,22.6249]
[1672580103768,179.11342557,9.9098,9.8996,22.6249]
[1672580103984,212.1311683,9.9098,9.8997,75.84]
[1672580104192,22.5532,9.9097,9.9021,75.82]
[1672580104518,40.0,9.9096,9.8996,22.6249]
[1672580104729,62.5532,9.9096,9.8996,22.6249]
[1672580104939,62.5532,9.9096,9.9021,75.82]
[1672580108627,56.94328966,9.9095,9.9021,75.82]
[1672580108838,40.0,9.9094,9.9021,75.82]
[1672580109361,56.94328966,9.9095,9.9021,75.82]
[1672580109768,40.0,9.9094,9.9021,75.82]
[1672580112617,56.94075874,9.9093,9.9021,75.82]
[1672580112832,40.0,9.9092,9.9021,75.82]
[1672580113035,56.94075874,9.9093,9.9021,75.82]
[1672580113248,40.0,9.9092,9.9022,40.0]
[1672580113464,40.0,9.9092,9.9023,75.82]
[1672580113677,40.0,9.9092,9.9021,75.82]
[1672580116409,56.93822773,9.9091,9.9021,75.82]
[1672580116614,40.0,9.909,9.9021,75.82]
[1672580119012,40.0,9.9088,9.9021,75.82]
[1672580119226,40.0,9.9088,9.9001,75.84]
[1672580119451,40.0,9.9086,9.9021,75.82]
[1672580119962,40.0,9.9084,9.9021,75.82]
[1672580124487,56.92810265,9.9083,9.9021,75.82]
[1672580124707,40.0,9.9082,9.9021,75.82]
[1672580128605,40.0,9.908,9.9021,75.82]
[1672580132579,40.0,9.9078,9.9021,75.82]
[1672580136587,40.0,9.9076,9.9021,75.82]
[1672580137233,40.0,9.9074,9.9021,75.82]
[1672580138604,71.3497547,9.9073,9.9021,75.82]
[1672580138788,40.0,9.9072,9.901,75.83]
[1672580139231,71.3497547,9.9071,9.901,75.83]
[1672580139540,40.0,9.907,9.901,75.83]
[1672580140599,40.0,9.9068,9.901,75.83]
[1672580140912,57.53005026,9.9069,9.901,75.83]
[1672580141313,40.0,9.9068,9.901,75.83]
[1672580141520,57.53005026,9.9069,9.901,75.83]
[1672580141754,40.0,9.9068,9.9021,75.82]
[1672580142359,57.53005026,9.9069,9.9021,75.82]
[1672580144484,71.11128196,9.9074,9.9021,75.82]
[1672580145524,40.0,9.9072,9.9021,75.82]
[1672580146673,57.53508942,9.9073,9.9021,75.82]
[1672580146878,40.0,9.9072,9.9021,75.82]
[1672580147539,57.53508942,9.9073,9.9021,75.82]
[1672580147855,57.53508942,9.9073,9.9022,40.0]
[1672580148079,57.53508942,9.9073,9.9023,75.82]
[1672580148474,22.5465,9.9089,9.9021,75.82]
[1672580148684,40.0,9.9088,9.9021,75.82]
[1672580148913,182.46103666,9.9088,9.9021,75.82]
[1672580149124,40.0,9.9086,9.9021,75.82]
[1672580149543,142.46103666,9.9085,9.9021,75.82]
[1672580149855,111.11128196,9.9084,9.9021,75.82]
[1672580150170,111.11128196,9.9084,9.9011,99.6885]
[1672580150171,142.46103666,9.9083,9.9011,99.6885]
[1672580150384,40.0,9.9082,9.9011,99.6885]
[1672580150581,75.77,9.9081,9.9011,23.8585]
[1672580150791,40.0,9.908,9.9011,23.8585]
[1672580151001,40.0,9.9078,9.9011,23.8585]
[1672580151213,75.78,9.9077,9.9011,23.8585]
[1672580151533,40.0,9.9076,9.9011,23.8585]
[1672580151752,191.40503666,9.9076,9.9011,23.8585]
[1672580151965,40.0,9.9074,9.9011,23.8585]
[1672580152269,151.40503666,9.9073,9.9011,23.8585]
[1672580152484,40.0,9.9072,9.9011,23.8585]
[1672580152693,191.40503666,9.9072,9.9011,23.8585]
[1672580152905,40.0,9.907,9.9011,23.8585]
[1672580153311,40.0,9.9068,9.9011,23.8585]
[1672580153749,116.09908803,9.9068,9.9011,23.8585]
[1672580154461,40.0,9.9066,9.9011,23.8585]
[1672580154878,40.0,9.9064,9.9011,23.8585]
[1672580155307,40.0,9.9062,9.9011,23.8585]
[1672580155739,40.0,9.906,9.9011,23.8585]
[1672580156158,40.0,9.9058,9.9011,23.8585]
[1672580156790,116.09908803,9.9058,9.9011,23.8585]
[1672580160593,40.0,9.9056,9.9011,23.8585]
[1672580164463,57.51241001,9.9055,9.9011,23.8585]
[1672580164674,40.0,9.9054,9.9011,23.8585]
[1672580167306,57.51241001,9.9055,9.9011,23.8585]
[1672580167520,40.0,9.9054,9.9011,23.8585]
[1672580168694,40.0,9.9052,9.9011,23.8585]
[1672580170994,40.0,9.9052,9.8986,75.85]
[1672580171214,40.0,9.9052,9.889,302.2]
[1672580171215,76.9758266,9.9051,9.889,302.2]
[1672580171424,75.8,9.905,9.8973,20.0]
[1672580171635,75.8,9.905,9.8859,74.89322569]
[1672580171854,246.0722,9.9049,9.886,75.94]
[1672580172060,246.0722,9.9049,9.8858,75.95]
[1672580172061,83.42844,9.9048,9.8858,75.95]
[1672580172376,7.62844,9.9046,9.8858,74.45]
[1672580172576,135.8,9.9045,9.8859,40.0]
[1672580172781,7.62844,9.9044,9.886,75.94]
[1672580173001,836.92736645,9.9043,9.886,75.94]
[1672580173219,760.44378352,9.9042,9.8824,75.97]
[1672580173411,867.5707473,9.9041,9.8824,40.0]
[1672580173628,826.51153979,9.904,9.8825,75.97]
[1672580173844,40.0,9.9038,9.8824,40.0]
[1672580174059,893.92007362,9.9037,9.8825,378.17]
[1672580174270,150.83736472,9.9002,9.8825,75.97]
[1672580174464,40.0,9.899,9.8815,40.0]
[1672580174679,211.6692,9.8989,9.8816,75.98]
[1672580174889,40.0,9.8988,9.8817,40.0]
[1672580175106,75.85,9.8987,9.8818,75.98]
[1672580175323,20.0,9.8986,9.8796,75.99]
[1672580175526,75.85,9.8985,9.8798,40.0]
[1672580175740,788.5918684,9.8985,9.8807,38.59096833]
[1672580175935,91.73255809,9.8985,9.8809,302.2]
[1672580176145,184.5827,9.8986,9.8811,302.2]
[1672580176351,184.5827,9.8986,9.8814,40.0]
[1672580176680,184.5827,9.8986,9.8816,302.2]
[1672580176897,184.5827,9.8986,9.8818,302.2]
[1672580177086,68.7535,9.8986,9.8821,40.0]
[1672580177307,68.7535,9.8986,9.8823,302.2]
[1672580177507,68.7535,9.8986,9.8825,302.2]
[1672580177729,68.7535,9.8986,9.8827,302.2]
[1672580177942,68.7535,9.8986,9.883,40.0]
[1672580178151,68.7535,9.8986,9.8832,302.2]
[1672580178364,68.7535,9.8986,9.8835,40.0]
[1672580178581,68.7535,9.8986,9.8837,302.2]
[1672580178787,68.7535,9.8986,9.8839,302.2]
[1672580179108,68.7535,9.8986,9.8841,342.2]
[1672580179310,68.7535,9.8986,9.8844,40.0]
[1672580179524,68.7535,9.8986,9.8846,302.2]
[1672580179737,68.7535,9.8986,9.8848,302.2]
[1672580179946,68.7535,9.8986,9.8851,40.0]
[1672580180162,68.7535,9.8986,9.8854,40.0]
[1672580180486,57.37868611,9.8949,9.8856,302.2]
[1672580180692,57.37868611,9.8949,9.8858,342.2]
[1672580180901,57.37868611,9.8949,9.8861,40.0]
[1672580181223,57.37868611,9.8949,9.8864,40.0]
[1672580181424,57.37868611,9.8949,9.8866,302.2]
[1672580181635,68.7535,9.8986,9.8864,40.0]
[1672580181636,68.7535,9.8986,9.8869,40.0]
[1672580181843,68.7535,9.8986,9.8871,302.2]
[1672580182048,68.7535,9.8986,9.8874,40.0]